fUSD/lending_fUSD_20240519
["ID","MTS","AMOUNT","RATE_DAILY","PERIOD"]
[327490028,1716123044817,-757.31,0.00026689,2]
[327490029,1716123044827,-500.0,0.00026689,2]
[327490030,1716123044836,-500.0,0.00026689,2]
[327490031,1716123044846,-528.77555655,0.00026689,2]
[327490032,1716123044855,-154.469983,0.00026689,7]
[327490033,1716123044865,-970.1,0.00026689,2]
[327490034,1716123044875,-500.0,0.00026689,2]
[327490035,1716123044885,-500.0,0.00026689,2]
[327490036,1716123044894,-500.0,0.00026689,2]
[327490037,1716123044904,-151.0,0.00026689,7]
[327490038,1716123044913,-151.0,0.00026689,7]
[327490039,1716123044922,-260.684396,0.00026689,7]
[327490040,1716123044932,-500.0,0.00026689,2]
[327490041,1716123044941,-338.36919,0.00026689,7]
[327490042,1716123044950,-338.36919,0.00026689,7]
[327490043,1716123044961,-338.36919,0.00026689,7]
[327490044,1716123044970,-338.36919,0.00026689,7]
[327490045,1716123044978,-988.01,0.00026689,2]
[327490046,1716123044987,-338.36919,0.00026689,7]
[327490047,1716123044998,-338.36919,0.00026689,7]
[327490048,1716123045007,-338.36919,0.00026689,7]
[327490049,1716123045019,-338.36919,0.00026689,7]
[327490050,1716123045028,-835.96,0.00026689,2]
[327490051,1716123045037,-151.0,0.00026689,7]
[327490052,1716123045047,-151.0,0.00026689,7]
[327490053,1716123045058,-500.0,0.00026689,2]
[327490054,1716123045069,-500.0,0.00026689,2]
[327490055,1716123045078,-509.52035976,0.00026689,2]
[327490056,1716123045091,-505.61305452,0.00026689,2]
[327490057,1716123045100,-500.0,0.00026689,2]
[327490058,1716123045109,-512.14579462,0.00026689,2]
[327490059,1716123045118,-1145.95,0.00026689,2]
[327490060,1716123045128,-505.96401372,0.00026689,2]
[327490061,1716123045138,-151.0,0.00026689,7]
[327490062,1716123045149,-500.0,0.00026689,2]
[327490063,1716123045160,-151.0,0.00026689,7]
[327490064,1716123045175,-151.0,0.00026689,7]
[327490065,1716123045184,-151.0,0.00026689,7]
[327490066,1716123045194,-545.26,0.00026689,2]
[327490067,1716123045204,-500.0,0.00026689,2]
[327490068,1716123045214,-3735.38,0.00026689,2]
[327490069,1716123045223,-500.0,0.00026689,2]
[327490070,1716123045233,-500.0,0.00026689,2]
[327490071,1716123045243,-500.0,0.00026689,2]
[327490072,1716123045253,-1037.14,0.00026689,2]
[327490073,1716123045262,-509.32406625,0.00026689,2]
[327490074,1716123045271,-890.5,0.00026689,2]
[327490075,1716123045281,-500.0,0.00026689,2]
[327490076,1716123045290,-500.0,0.00026689,2]
[327490077,1716123045300,-500.0,0.00026689,2]
[327490078,1716123045309,-151.0,0.00026689,7]
[327490079,1716123045319,-153.384301,0.00026689,7]
[327490080,1716123045328,-889.1,0.00026689,2]
[327490081,1716123045338,-151.0,0.00026689,7]
[327490082,1716123045347,-151.0,0.00026689,7]
[327490083,1716123045356,-500.0,0.00026689,2]
[327490084,1716123045365,-500.0,0.00026689,2]
[327490085,1716123045375,-151.0,0.00026689,7]
[327490086,1716123045384,-151.0,0.00026689,7]
[327490087,1716123045395,-153.520225,0.00026689,7]
[327490088,1716123045404,-151.0,0.00026689,7]
[327490089,1716123045417,-151.0,0.00026689,7]
[327490090,1716123045437,-151.0,0.00026689,7]
[327490091,1716123045450,-568.51,0.00026689,2]
[327490092,1716123045462,-500.0,0.00026689,2]
[327490093,1716123045472,-500.0,0.00026689,2]
[327490094,1716123045482,-500.0,0.00026689,2]
[327490095,1716123045492,-1883.16,0.00026689,2]
[327490096,1716123045503,-500.0,0.00026689,2]
[327490097,1716123045512,-500.0,0.00026689,2]
[327490098,1716123045521,-223.3787057,0.00026689,2]
[327490110,1716123045847,-276.6212943,0.00026689,2]
[327490112,1716123045857,-500.0,0.00026689,2]
[327490114,1716123045867,-500.0,0.00026689,2]
[327490116,1716123045876,-151.0,0.00026689,7]
[327490118,1716123045885,-151.0,0.00026689,7]
[327490120,1716123045894,-151.0,0.00026689,7]
[327490122,1716123045903,-648.51,0.00026689,2]
[327490124,1716123045912,-151.0,0.00026689,7]
[327490126,1716123045921,-574.74743212,0.00026689,2]
[327490128,1716123045931,-151.0,0.00026689,7]
[327490130,1716123045940,-1509.486727,0.00026689,7]
[327490132,1716123045949,-1509.486727,0.00026689,7]
[327490133,1716123045958,-1509.486727,0.00026689,7]
[327490134,1716123045968,-151.0,0.00026689,7]
[327490135,1716123045977,-1509.486727,0.00026689,7]
[327490136,1716123045986,-500.0,0.00026689,2]
[327490138,1716123045995,-151.0,0.00026689,7]
[327490140,1716123046004,-1105.17436558,0.00026689,7]
[327490144,1716123046293,-902.94,0.00026645,2]
[327490145,1716123046303,-404.31236142,0.00026689,7]
[327490146,1716123046312,-500.0,0.00026689,2]
[327490147,1716123046322,-1509.486727,0.00026689,7]
[327490148,1716123046331,-1509.486727,0.00026689,7]
[327490149,1716123046340,-1509.486727,0.00026689,7]
[327490150,1716123046350,-1509.486727,0.00026689,7]
[327490151,1716123046358,-973.68,0.00026689,2]
[327490152,1716123046367,-1509.486727,0.00026689,7]
[327490153,1716123046377,-500.0,0.00026689,2]
[327490154,1716123046386,-713.01,0.00026689,2]
[327490155,1716123046395,-500.0,0.00026689,2]
[327490156,1716123046404,-152.491323,0.00026689,7]
[327490157,1716123046419,-516.859723,0.00026689,7]
[327490158,1716123046429,-516.859723,0.00026689,7]
[327490159,1716123046438,-516.859723,0.00026689,7]
[327490160,1716123046448,-516.859723,0.00026689,7]
[327490161,1716123046459,-500.0,0.00026689,2]
[327490162,1716123046470,-516.859723,0.00026689,7]
[327490163,1716123046479,-151.0,0.00026689,7]
[327490164,1716123046488,-151.0,0.00026689,7]
[327490165,1716123046497,-516.859723,0.00026689,7]
[327490166,1716123046509,-516.859723,0.00026689,7]
[327490167,1716123046518,-516.859723,0.00026689,7]
[327490168,1716123046527,-151.0,0.00026689,7]
[327490169,1716123046537,-516.859723,0.00026689,7]
[327490170,1716123046547,-151.0,0.00026689,7]
[327490171,1716123046556,-516.859723,0.00026689,7]
[327490172,1716123046565,-500.0,0.00026689,2]
[327490173,1716123046574,-500.0,0.00026689,2]
[327490174,1716123046584,-500.0,0.00026689,2]
[327490175,1716123046593,-151.0,0.00026689,7]
[327490176,1716123046603,-151.0,0.00026689,7]
[327490177,1716123046612,-151.0,0.00026689,7]
[327490178,1716123046622,-500.0,0.00026689,2]
[327490179,1716123046632,-2813.07,0.00026689,2]
[327490180,1716123046641,-500.0,0.00026689,2]
[327490181,1716123046650,-4675.42,0.00026689,2]
[327490182,1716123046659,-188.147517,0.00026689,7]
[327490183,1716123046669,-188.147517,0.00026689,7]
[327490184,1716123046678,-188.147517,0.00026689,7]
[327490185,1716123046688,-188.147517,0.00026689,7]
[327490186,1716123046697,-188.147517,0.00026689,7]
[327490187,1716123046707,-500.0,0.00026689,2]
[327490188,1716123046718,-500.0,0.00026689,2]
[327490189,1716123046727,-188.147517,0.00026689,7]
[327490190,1716123046737,-188.147517,0.00026689,7]
[327490191,1716123046746,-188.147517,0.00026689,7]
[327490192,1716123046756,-500.0,0.00026689,2]
[327490193,1716123046765,-188.147517,0.00026689,7]
[327490194,1716123046775,-188.147517,0.00026689,7]
[327490195,1716123046784,-500.0,0.00026689,2]
[327490196,1716123046794,-954.83,0.00026689,2]
[327490197,1716123046803,-500.0,0.00026689,2]
[327490198,1716123046813,-500.0,0.00026689,2]
[327490199,1716123046822,-388.84801668,0.00026689,2]
[327490200,1716123046835,-6560.43198332,0.00026689,2]
[327490201,1716123046844,-500.0,0.00026689,2]
[327490202,1716123046856,-500.0,0.00026689,2]
[327490203,1716123046866,-610.34,0.00026689,2]
[327490204,1716123046876,-500.0,0.00026689,2]
[327490205,1716123046885,-151.0,0.00026689,7]
[327490206,1716123046895,-500.0,0.00026689,2]
[327490207,1716123046905,-151.0,0.00026689,7]
[327490208,1716123046918,-151.0,0.00026689,7]
[327490209,1716123046927,-151.0,0.00026689,7]
[327490210,1716123046936,-151.0,0.00026689,7]
[327490211,1716123046945,-151.0,0.00026689,7]
[327490212,1716123046955,-151.0,0.00026689,7]
[327490213,1716123046966,-151.0,0.00026689,7]
[327490214,1716123046976,-151.0,0.00026689,7]
[327490215,1716123046986,-269.867645,0.00026689,7]
[327490216,1716123046995,-912.3,0.00026689,2]
[327490217,1716123047005,-500.0,0.00026689,2]
[327490218,1716123047014,-286.868475,0.00026689,7]
[327490219,1716123047024,-500.0,0.00026689,2]
[327490220,1716123047056,-286.868475,0.00026689,7]
[327490221,1716123047066,-286.868475,0.00026689,7]
[327490222,1716123047075,-286.868475,0.00026689,7]
[327490223,1716123047086,-286.868475,0.00026689,7]
[327490224,1716123047095,-151.0,0.00026689,7]
[327490225,1716123047105,-151.0,0.00026689,7]
[327490226,1716123047115,-500.0,0.00026689,2]
[327490227,1716123047124,-151.0,0.00026689,7]
[327490228,1716123047134,-202.022839,0.00026689,7]
[327490229,1716123047143,-286.868475,0.00026689,7]
[327490230,1716123047153,-286.868475,0.00026689,7]
[327490231,1716123047163,-286.868475,0.00026689,7]
[327490232,1716123047173,-1105.26,0.00026689,2]
[327490233,1716123047182,-500.0,0.00026689,2]
[327490234,1716123047192,-286.868475,0.00026689,7]
[327490235,1716123047202,-286.868475,0.00026689,7]
[327490236,1716123047212,-500.0,0.00026689,2]
[327490237,1716123047222,-500.0,0.00026689,2]
[327490238,1716123047232,-151.0,0.00026689,7]
[327490239,1716123047242,-151.0,0.00026689,7]
[327490240,1716123047251,-151.0,0.00026689,7]
[327490241,1716123047261,-152.44465,0.00026689,7]
[327490242,1716123047272,-500.0,0.00026689,2]
[327490243,1716123047282,-829.66,0.00026689,2]
[327490244,1716123047291,-500.0,0.00026689,2]
[327490245,1716123047301,-500.0,0.00026689,2]
[327490246,1716123047311,-242.006092,0.00026689,7]
[327490247,1716123047320,-500.0,0.00026689,2]
[327490248,1716123047330,-500.0,0.00026689,2]
[327490249,1716123047340,-944.56,0.00026689,2]
[327490250,1716123047349,-168.005514,0.00026689,7]
[327490251,1716123047359,-168.005514,0.00026689,7]
[327490252,1716123047368,-168.005514,0.00026689,7]
[327490253,1716123047378,-168.005514,0.00026689,7]
[327490254,1716123047388,-168.005514,0.00026689,7]
[327490255,1716123047397,-168.005514,0.00026689,7]
[327490256,1716123047407,-168.005514,0.00026689,7]
[327490257,1716123047417,-168.005514,0.00026689,7]
[327490258,1716123047431,-168.005514,0.00026689,7]
[327490259,1716123047440,-168.005514,0.00026689,7]
[327490260,1716123047450,-500.0,0.00026689,2]
[327490261,1716123047459,-629.68,0.00026689,2]
[327490262,1716123047470,-500.0,0.00026689,2]
[327490263,1716123047479,-45477.68690068,0.0002669,2]
[327490264,1716123048030,-728.05842579,0.0002669,2]
[327490265,1716123048042,-861.78488582,0.0002669,2]
[327490266,1716123048058,-22118.55150833,0.0002669,2]
[327490267,1716123048069,-151.0,0.0002669,7]
[327490268,1716123048079,-151.0,0.0002669,7]
[327490269,1716123048088,-151.0,0.0002669,7]
[327490270,1716123048098,-151.0,0.0002669,7]
[327490271,1716123048107,-151.0,0.0002669,7]
[327490272,1716123048116,-314.620892,0.0002669,7]
[327490273,1716123048126,-151.0,0.0002669,7]
[327490274,1716123048135,-314.620892,0.0002669,7]
[327490275,1716123048144,-151.0,0.0002669,7]
[327490276,1716123048154,-151.0,0.0002669,7]
[327490277,1716123048163,-151.0,0.0002669,7]
[327490278,1716123048172,-215.61116,0.0002669,7]
[327490279,1716123048181,-151.0,0.0002669,7]
[327490280,1716123048190,-151.0,0.0002669,7]
[327490281,1716123048199,-151.0,0.0002669,7]
[327490282,1716123048208,-250.261772,0.0002669,7]
[327490283,1716123048220,-250.261772,0.0002669,7]
[327490284,1716123048229,-151.0,0.0002669,7]
[327490285,1716123048238,-151.0,0.0002669,7]
[327490286,1716123048248,-238.042526,0.0002669,7]
[327490287,1716123048257,-151.0,0.0002669,7]
[327490288,1716123048267,-151.0,0.0002669,7]
[327490289,1716123048276,-184.951036,0.0002669,7]
[327490290,1716123048285,-151.0,0.0002669,7]
[327490291,1716123048295,-338.36919,0.0002669,7]
[327490292,1716123048304,-338.36919,0.0002669,7]
[327490293,1716123048313,-151.0,0.0002669,7]
[327490294,1716123048322,-209.799418,0.0002669,7]
[327490295,1716123048332,-151.0,0.0002669,7]
[327490296,1716123048341,-1509.486727,0.0002669,7]
[327490297,1716123048350,-1509.486727,0.0002669,7]
[327490298,1716123048359,-516.859723,0.0002669,7]
[327490299,1716123048368,-516.859723,0.0002669,7]
[327490300,1716123048377,-188.147517,0.0002669,7]
[327490301,1716123048386,-188.147517,0.0002669,7]
[327490302,1716123048395,-151.0,0.0002669,7]
[327490303,1716123048404,-286.868475,0.0002669,7]
[327490304,1716123048419,-286.868475,0.0002669,7]
[327490305,1716123048428,-168.005514,0.0002669,7]
[327490306,1716123048437,-168.005515,0.0002669,7]
[327490307,1716123048446,-500.0,0.00026693,2]
[327490308,1716123048456,-566.16350359,0.00026694,2]
[327490309,1716123048467,-176.91356603,0.00026694,2]
[327490310,1716123048476,-19626.96507151,0.00026694,2]
[327490311,1716123048485,-5000.0,0.00026694,7]
[327490312,1716123048494,-153.560438,0.00026694,7]
[327490313,1716123048505,-151.0,0.00026694,7]
[327490314,1716123048515,-151.685437,0.00026694,7]
[327490315,1716123048524,-151.0,0.00026694,7]
[327490316,1716123048532,-151.0,0.00026694,7]
[327490317,1716123048542,-151.0,0.00026694,7]
[327490318,1716123048550,-151.0,0.00026694,7]
[327490319,1716123048559,-151.0,0.00026694,7]
[327490320,1716123048569,-234.215632,0.00026694,7]
[327490321,1716123048578,-234.215632,0.00026694,7]
[327490322,1716123048586,-151.0,0.00026694,7]
[327490323,1716123048596,-151.0,0.00026694,7]
[327490324,1716123048604,-256.404625,0.00026694,7]
[327490325,1716123048613,-151.0,0.00026694,7]
[327490326,1716123048622,-151.0,0.00026694,7]
[327490327,1716123048631,-151.0,0.00026694,7]
[327490328,1716123048641,-151.0,0.00026694,7]
[327490329,1716123048650,-500.0,0.00026694,2]
[327490330,1716123048659,-151.0,0.00026694,7]
[327490331,1716123048668,-500.0,0.00026694,2]
[327490332,1716123048806,-151.0,0.00026694,7]
[327490333,1716123048816,-151.0,0.00026694,7]
[327490334,1716123048826,-151.0,0.00026694,7]
[327490335,1716123048835,-153.184176,0.00026694,7]
[327490336,1716123048845,-314.620892,0.00026694,7]
[327490337,1716123048854,-263.116866,0.00026694,7]
[327490338,1716123048863,-314.620892,0.00026694,7]
[327490339,1716123048872,-151.0,0.00026694,7]
[327490340,1716123048882,-151.0,0.00026694,7]
[327490341,1716123048892,-151.0,0.00026694,7]
[327490342,1716123048902,-151.0,0.00026694,7]
[327490343,1716123048912,-151.0,0.00026694,7]
[327490344,1716123048922,-151.0,0.00026694,7]
[327490345,1716123048931,-250.261772,0.00026694,7]
[327490346,1716123048941,-250.261772,0.00026694,7]
[327490347,1716123048950,-151.0,0.00026694,7]
[327490348,1716123048960,-151.0,0.00026694,7]
[327490349,1716123048970,-151.0,0.00026694,7]
[327490350,1716123048979,-151.0,0.00026694,7]
[327490351,1716123048988,-338.36919,0.00026694,7]
[327490352,1716123048998,-338.36919,0.00026694,7]
[327490353,1716123049007,-151.0,0.00026694,7]
[327490354,1716123049017,-500.0,0.00026694,2]
[327490355,1716123049027,-500.0,0.00026694,2]
[327490356,1716123049037,-500.0,0.00026694,2]
[327490357,1716123049046,-151.0,0.00026694,7]
[327490358,1716123049055,-1509.486727,0.00026694,7]
[327490359,1716123049064,-1509.486727,0.00026694,7]
[327490360,1716123049073,-516.859723,0.00026694,7]
[327490361,1716123049083,-516.859723,0.00026694,7]
[327490362,1716123049092,-188.147517,0.00026694,7]
[327490363,1716123049102,-188.147517,0.00026694,7]
[327490364,1716123049112,-292.794868,0.00026694,7]
[327490365,1716123049122,-286.868475,0.00026694,7]
[327490366,1716123049131,-286.868475,0.00026694,7]
[327490367,1716123049141,-189.273422,0.00026694,2]
[327490368,1716123049151,-500.0,0.00026694,2]
[327490369,1716123049161,-480.70302718,0.00026694,2]
[327490370,1716123049170,-500.0,0.00026694,2]
[327490371,1716123049181,-500.0,0.00026694,2]
[327490372,1716123049191,-500.0,0.00026694,2]
[327490373,1716123049201,-500.0,0.00026694,2]
[327490374,1716123049210,-339.02201377,0.00026694,2]
[327490375,1716123049221,-353.48256167,0.00026694,2]
[327490376,1716123049231,-500.0,0.00026694,2]
[327490377,1716123049240,-500.0,0.00026694,2]
[327490378,1716123049249,-500.0,0.00026694,2]
[327490379,1716123049260,-419505.28800122,0.00026695,13]
[327490380,1716123049273,-7487.99154409,0.00026695,13]
[327490381,1716123049291,-680.45650329,0.00026695,13]
[327490382,1716123049303,-656.14,0.00026695,13]
[327490383,1716123049350,-1236.13216261,0.00026695,13]
[327490384,1716123049374,-20693.84393762,0.00026695,13]
[327490385,1716123049386,-2550.51246391,0.00026695,13]
[327490387,1716123049508,-1060.61,0.00026689,2]
[327490388,1716123049518,-583.60452738,0.00026695,13]
[327490389,1716123049530,-828.64970082,0.00026695,13]
[327490390,1716123049541,-1286.01328,0.00026695,13]
[327490391,1716123049552,-3207.56,0.00026695,13]
[327490392,1716123049585,-2026.77504163,0.00026695,13]
[327490393,1716123049602,-471.15772196,0.00026695,13]
[327490394,1716123049622,-500.0,0.00026695,13]
[327490395,1716123049633,-881.33987596,0.00026695,13]
[327490396,1716123049644,-295.21458624,0.00026695,13]
[327490397,1716123063885,643.32897965,0.00017259,2]
[327490398,1716123156531,294.38987776,0.00017259,7]
[327490399,1716123194995,200.0,0.00017121,2]
[327490400,1716123197231,1000.0,0.00017121,2]
[327490401,1716123201815,200.0,0.00017121,2]
[327490402,1716123204785,500.0,0.00017121,2]
[327490403,1716123222308,900.54106739,0.00017259,2]
[327490404,1716123240634,186.93391276,0.00017121,2]
[327490405,1716123266661,10644.72363912,0.00017259,2]
[327490406,1716123463206,104826.19778092,0.00017259,2]
[327490407,1716123507418,181.71,0.00025109,120]
[327490408,1716123546133,2000.0,0.00025077,120]
[327490427,1716124171550,7243.4301446,0.00027,90]
[327490452,1716124232214,-154.20842833,0.00019608,2]
[327490454,1716124232223,-3845.79157167,0.00019703,2]
[327490456,1716124232234,-16959.999995,0.00019703,2]
[327490459,1716124232536,-7431.50112957,0.00019703,2]
[327490462,1716124232548,-2045.60729713,0.00019703,2]
[327490495,1716124238976,-13022.47696897,0.00019703,2]
[327490496,1716124238987,-877.0,0.00019704,2]
[327490497,1716124238996,-661.0,0.00019706,2]
[327490498,1716124239006,-950.58,0.00023154,2]
[327490499,1716124239016,-499.99,0.00023154,2]
[327490500,1716124239026,-396.0,0.000248,2]
[327490501,1716124239036,-188.02,0.00024867,2]
[327490502,1716124239046,-699.59,0.00024882,2]
[327490503,1716124239057,-2000.0,0.00024898,2]
[327490504,1716124239067,-250.0,0.00024952,2]
[327490505,1716124239078,-250.0,0.00025013,2]
[327490506,1716124239087,-160.32,0.00025062,2]
[327490507,1716124239097,-159.13,0.00025097,2]
[327490508,1716124239107,-950.58,0.00025418,2]
[327490509,1716124239116,-155.12,0.00025648,2]
[327490510,1716124239127,-155.12,0.0002568,2]
[327490511,1716124239137,-523.91,0.00025691,2]
[327490512,1716124239147,-1049.31,0.00025691,2]
[327490513,1716124239157,-830.56,0.00025693,2]
[327490514,1716124239167,-153.82,0.00025698,2]
[327490515,1716124239176,-150.0,0.00025698,2]
[327490516,1716124239186,-71.47303103,0.00025698,2]
[327490517,1716124239203,-280.24696897,0.00025698,2]
[327490518,1716124239212,-150.0,0.00025698,2]
[327490519,1716124239222,-150.0,0.00025698,2]
[327490520,1716124239232,-351.72,0.00025698,2]
[327490521,1716124239243,-150.0,0.00025698,2]
[327490522,1716124239253,-150.0,0.00025698,2]
[327490523,1716124239262,-523.91,0.00025698,2]
[327490524,1716124239275,-150.0,0.00025698,2]
[327490525,1716124239284,-150.0,0.00025698,2]
[327490526,1716124239293,-351.72,0.00025698,2]
[327490527,1716124239302,-150.56,0.00025698,2]
[327490528,1716124239312,-150.0,0.00025698,2]
[327490529,1716124239321,-150.0,0.00025698,2]
[327490530,1716124239330,-150.0,0.00025698,2]
[327490531,1716124239340,-150.0,0.00025698,2]
[327490532,1716124239350,-150.0,0.00025698,2]
[327490533,1716124239360,-420.64,0.00025698,2]
[327490534,1716124239370,-150.0,0.00025698,2]
[327490535,1716124239380,-523.91,0.00025698,2]
[327490536,1716124239390,-163.42,0.00025698,2]
[327490537,1716124239400,-347.07,0.00025698,2]
[327490538,1716124239409,-155.12,0.00025712,2]
[327490539,1716124239419,-155.12,0.00025744,2]
[327490540,1716124239428,-1041.86716506,0.00025746,2]
[327490541,1716124239438,-155.12,0.00025776,2]
[327490543,1716124239448,-523.91,0.00025878,2]
[327490545,1716124239458,-351.72,0.00025878,2]
[327490547,1716124239467,-298.110905,0.00026,2]
[327490549,1716124239477,-900.0,0.00026,27]
[327490551,1716124239487,-150.0,0.00026079,2]
[327490553,1716124239496,-150.0,0.00026252,2]
[327490555,1716124239506,-150.0,0.0002638,2]
[327490557,1716124239516,-878.52079244,0.00026408,2]
[327490559,1716124239527,-252.27923315,0.00026426,2]
[327490560,1716124239536,-180.74227873,0.00026431,2]
[327490562,1716124239546,-150.0,0.00026455,2]
[327490564,1716124239556,-892.59,0.0002648,3]
[327490566,1716124239566,-155.35726701,0.00026488,2]
[327490568,1716124239576,-291.02934271,0.00026488,2]
[327490570,1716124239586,-2002.85096522,0.00026488,2]
[327490572,1716124239596,-299.40777896,0.00026488,2]
[327490574,1716124239606,-3005.84124208,0.00026488,2]
[327490576,1716124239616,-577.40235431,0.00026489,7]
[327490577,1716124239626,-22114.2385,0.0002649,2]
[327490578,1716124239640,-56608.92378541,0.0002649,2]
[327490579,1716124239654,-3000.24101459,0.0002649,2]
[327490580,1716124239664,-1865.295,0.00026493,2]
[327490581,1716124239674,-169.10928245,0.00026493,2]
[327490582,1716124239685,-6905.35470296,0.00026495,2]
[327490583,1716124239708,-4225.95199704,0.00026495,2]
[327490584,1716124239718,-150.0,0.0002652,2]
[327490585,1716124239728,-150.0,0.0002652,2]
[327490586,1716124239740,-351.72,0.0002652,2]
[327490587,1716124239750,-150.0,0.0002652,2]
[327490588,1716124239761,-300.0,0.0002652,2]
[327490589,1716124239776,-150.0,0.0002652,2]
[327490590,1716124239786,-163.42,0.0002652,2]
[327490591,1716124239797,-420.64,0.0002652,2]
[327490592,1716124239807,-150.0,0.0002652,2]
[327490593,1716124239818,-523.91,0.0002652,2]
[327490594,1716124239828,-300.0,0.0002652,2]
[327490595,1716124239838,-703.34,0.0002652,2]
[327490596,1716124239851,-150.0,0.0002652,2]
[327490597,1716124239860,-150.0,0.0002652,2]
[327490598,1716124239870,-150.0,0.0002652,2]
[327490599,1716124239880,-150.0,0.0002652,2]
[327490600,1716124239890,-523.91,0.0002652,2]
[327490601,1716124239899,-150.0,0.0002652,2]
[327490602,1716124239909,-150.0,0.0002652,2]
[327490603,1716124239919,-616.47,0.0002652,2]
[327490604,1716124239928,-420.64,0.0002652,2]
[327490605,1716124239938,-150.0,0.0002652,2]
[327490606,1716124239948,-523.91,0.0002652,2]
[327490607,1716124239958,-420.64,0.0002652,2]
[327490608,1716124239968,-351.72,0.0002652,2]
[327490609,1716124239977,-150.0,0.0002652,2]
[327490610,1716124239988,-64.87739918,0.0002652,2]
[327490611,1716124240002,-459.03260082,0.0002652,2]
[327490612,1716124240012,-172.58,0.0002652,2]
[327490613,1716124240024,-351.72,0.0002652,2]
[327490614,1716124240034,-150.0,0.0002652,2]
[327490615,1716124240044,-523.91,0.0002652,2]
[327490616,1716124240054,-420.64,0.0002652,2]
[327490617,1716124240063,-325.69,0.0002652,2]
[327490618,1716124240073,-150.0,0.0002652,2]
[327490619,1716124240082,-522.51,0.0002652,2]
[327490620,1716124240092,-150.0,0.0002652,2]
[327490621,1716124240102,-162.24,0.0002652,2]
[327490622,1716124240111,-7.72024616,0.0002652,2]
[327490623,1716124240123,-399.09075572,0.0002652,2]
[327490624,1716124240136,-13.82899812,0.0002652,2]
[327490625,1716124240145,-150.0,0.0002652,2]
[327490626,1716124240156,-173.19728679,0.0002652,2]
[327490627,1716124240215,-209.25271321,0.0002652,2]
[327490628,1716124240224,-150.0,0.0002652,2]
[327490629,1716124240235,-292.05023879,0.0002652,2]
[327490630,1716124240247,-128.58976121,0.0002652,2]
[327490632,1716124240257,-150.0,0.0002652,2]
[327490634,1716124240267,-703.08,0.0002652,2]
[327490635,1716124240278,-420.64,0.0002652,2]
[327490636,1716124240287,-150.0,0.0002652,2]
[327490637,1716124240296,-150.0,0.0002652,2]
[327490638,1716124240306,-420.64,0.0002652,2]
[327490639,1716124240316,-420.64,0.0002652,2]
[327490641,1716124240326,-665.81,0.0002652,2]
[327490643,1716124240336,-833.45,0.0002652,2]
[327490645,1716124240346,-283.6408,0.00026566,2]
[327490647,1716124240355,-24886.2420171,0.00026578,2]
[327490649,1716124240915,-335.67346987,0.00026578,2]
[327490650,1716124240928,-473.64023874,0.00026578,2]
[327490653,1716124241082,-150.0,0.00026584,2]
[327490654,1716124241092,-1000.0,0.00026589,2]
[327490655,1716124241102,-500.0,0.0002659,2]
[327490656,1716124241111,-500.0,0.0002659,2]
[327490657,1716124241121,-500.0,0.0002659,2]
[327490658,1716124241131,-247.03230826,0.00026591,2]
[327490659,1716124241143,-252.96769174,0.00026591,2]
[327490660,1716124241152,-500.0,0.00026591,2]
[327490661,1716124241162,-500.0,0.00026591,2]